[Event "FIDE WCCC G12 2018"]
[Site "Santiago de Compostela"]
[Date "2018.11.09"]
[Round "5"]
[White "Mihelic, Vesna"]
[Black "Zvereva, Margarita"]
[Result "1/2-1/2"]
[ECO "B50"]
[WhiteElo "1741"]
[BlackElo "1787"]
[Annotator "NA RC"]
[PlyCount "108"]
[EventDate "2018.11.04"]
[EventType "swiss"]
[EventCountry "ESP"]
[SourceTitle "playchess.com"]
[Source "ChessBase"]
[SourceQuality "1"]
[TimeControl "40/5400+30:1800+30"]

1. e4 {[%emt 0:00:00]} c5 {[%emt 0:00:00]} 2. Nf3 {[%emt 0:00:00]} d6 {[%emt 0:00:00]} 3. c3 {[%emt 0:00:00]} Nf6 {[%emt 0:00:46]} 4. h3 {[%emt 0:00:09]} Nbd7 {[%emt 0:03:10]} 5. Bd3 {[%emt 0:01:42]} e6 {[%emt 0:01:28]} 6. Bc2 {[%emt 0:01:15]} Be7 {[%emt 0:05:51]} 7. d4 {[%emt 0:02:00]} Qc7 {[%emt 0:02:43]} 8. O-O {[%emt 0:08:03]} O-O {[%emt 0:00:34]} 9. Bf4 {[%emt 0:04:15]} Rd8 {[%emt 0:18:25]} 10. Nbd2 {[%emt 0:09:13]} b6 {[%emt 0:04:01]} 11. e5 {[%emt 0:15:06]} Nd5 {[%emt 0:01:05]} 12. Bh2 {[%emt 0:00:25]} dxe5 {[%emt 0:01:42]} 13. Nxe5 {[%emt 0:01:50]} Nxe5 {[%emt 0:00:48]} 14. Bxe5 {[%emt 0:00:19]} Bd6 {[%emt 0:00:41]} 15. Bxd6 {[%emt 0:04:26]} Qxd6 {[%emt 0:00:20]} 16. Ne4 {[%emt 0:03:55]} Qe7 {[%emt 0:01:10]} 17. Ng3 {[%emt 0:06:28]} Bb7 {[%emt 0:02:16]} 18. Be4 {[%emt 0:01:19]} Rac8 {[%emt 0:05:41]} 19. Re1 {[%emt 0:05:33]} Nf6 {[%emt 0:07:51]} 20. Bxb7 {[%emt 0:08:10]} Qxb7 {[%emt 0:00:06]} 21. Qd3 {[%emt 0:00:35]} cxd4 {[%emt 0:05:05]} 22. cxd4 {[%emt 0:00:16]} Qd5 {[%emt 0:04:12]} 23. Red1 {[%emt 0:02:01]} Rc7 {[%emt 0:06:17]} 24. Qb3 {[%emt 0:02:55]} Qg5 {[%emt 0:03:57]} 25. Rd3 {[%emt 0:04:38]} Nd5 {[%emt 0:05:52]} 26. Ne2 {[%emt 0:03:18]} Rdc8 {[%emt 0:03:18]} 27. Nc3 {[%emt 0:04:36]} Nf4 {[%emt 0:01:40]} 28. Rg3 {[%emt 0:00:11]} Qf6 {[%emt 0:03:39]} 29. Rd1 {[%emt 0:00:20]} Rd7 {[%emt 0:02:23]} 30. Ne4 {[%emt 0:09:50]} Ne2+ {[%emt 0:06:24]} 31. Kh2 {[%emt 0:00:02]} Qf4 {[%emt 0:02:00]} 32. Qe3 {[%emt 0:01:23]} Qxe3 {[%emt 0:00:33]} 33. Rxe3 {[%emt 0:00:02]} Rxd4 {[%emt 0:00:48]} 34. Rxd4 {[%emt 0:00:38]} Nxd4 {[%emt 0:00:02]} 35. Rd3 {[%emt 0:00:39]} e5 {[%emt 0:00:54]} 36. Nc3 {[%emt 0:00:42]} f6 {[%emt 0:00:53]} 37. Kg1 {[%emt 0:01:14]} Kf7 {[%emt 0:00:14]} 38. Kf1 {[%emt 0:00:08]} Ke6 {[%emt 0:00:14]} 39. f3 {[%emt 0:00:22]} a6 {[%emt 0:01:48]} 40. Kf2 {[%emt 0:00:00]} b5 {[%emt 0:00:00]} 41. a3 {[%emt 0:01:27]} a5 {[%emt 0:06:39]} 42. Rd2 {[%emt 0:04:50]} b4 {[%emt 0:02:15]} 43. axb4 {[%emt 0:00:20]} axb4 {[%emt 0:00:08]} 44. Ne2 {[%emt 0:01:39]} Nb3 {[%emt 0:05:07]} 45. Rd3 {[%emt 0:00:58]} Nc5 {[%emt 0:00:54]} 46. Rd2 {[%emt 0:03:43]} Ra8 {[%emt 0:02:12]} 47. Nc1 {[%emt 0:02:50]} b3 {[%emt 0:02:16]} 48. Nd3 {[%emt 0:02:45]} Na4 {[%emt 0:01:26]} 49. Nc1 {[%emt 0:01:03]} Rb8 {[%emt 0:00:34]} 50. Rd3 {[%emt 0:03:40]} Nc5 {[%emt 0:01:35]} 51. Rd2 {[%emt 0:01:11]} e4 {[%emt 0:01:50]} 52. Ke3 {[%emt 0:01:46]} f5 {[%emt 0:00:49]} 53. Ne2 {[%emt 0:00:51]} g5 {[%emt 0:01:07]} 54. Nd4+ {[%emt 0:01:04]} Kf6 {Kxe4} 1/2-1/2

[Event "FIDE WCCC G12 2018"]
[Site "Santiago de Compostela"]
[Date "2018.11.09"]
[Round "5"]
[White "Volovich, Julia"]
[Black "Shuqja, Klean"]
[Result "1/2-1/2"]
[ECO "D80"]
[WhiteElo "1735"]
[BlackElo "1798"]
[Annotator "NA RC"]
[PlyCount "70"]
[EventDate "2018.11.04"]
[EventType "swiss"]
[EventCountry "ESP"]
[SourceTitle "playchess.com"]
[Source "ChessBase"]
[SourceQuality "1"]
[TimeControl "40/5400+30:1800+30"]

1. d4 {[%emt 0:00:00]} Nf6 {[%emt 0:00:00]} 2. c4 {[%emt 0:00:00]} g6 {[%emt 0:00:00]} 3. Nc3 {[%emt 0:00:00]} d5 {[%emt 0:00:00]} 4. Bg5 {[%emt 0:00:00]} Ne4 {[%emt 0:00:12]} 5. Bh4 {[%emt 0:00:00]} Nxc3 {[%emt 0:03:42]} 6. bxc3 {[%emt 0:00:01]} dxc4 {[%emt 0:14:07]} 7. e3 {[%emt 0:00:24]} Bg7 {[%emt 0:00:43]} 8. Bxc4 {[%emt 0:00:44]} O-O {[%emt 0:00:17]} 9. Nf3 {[%emt 0:05:19]} Nd7 {[%emt 0:10:34]} 10. O-O {[%emt 0:06:13]} Nb6 {[%emt 0:03:25]} 11. Bd3 {[%emt 0:08:37]} Be6 {[%emt 0:04:50]} 12. Qe2 {[%emt 0:05:14]} h6 {[%emt 0:02:31]} 13. Rab1 {[%emt 0:07:58]} Qd7 {[%emt 0:11:00]} 14. Bg3 {[%emt 0:11:42]} Rac8 {[%emt 0:05:44]} 15. Rfc1 {[%emt 0:04:54]} c5 {[%emt 0:08:27]} 16. Bb5 {[%emt 0:04:43]} Qd8 {[%emt 0:00:59]} 17. Bd3 {[%emt 0:22:22]} c4 {[%emt 0:07:27]} 18. Be4 {[%emt 0:01:53]} Bd5 {[%emt 0:05:54]} 19. Bxd5 {[%emt 0:00:48]} Qxd5 {[%emt 0:00:02]} 20. Rb4 {[%emt 0:00:45]} Rfd8 {[%emt 0:04:18]} 21. Rcb1 {[%emt 0:01:35]} Qe4 {[%emt 0:03:42]} 22. Nd2 {[%emt 0:04:08]} Qc2 {[%emt 0:01:11]} 23. R4b2 {[%emt 0:00:51]} Qxc3 {[%emt 0:00:56]} 24. Ne4 {[%emt 0:00:32]} Qa3 {[%emt 0:01:10]} 25. Qc2 {[%emt 0:02:16]} f5 {[%emt 0:04:25]} 26. Nc5 {[%emt 0:03:31]} Rxc5 {[%emt 0:01:46]} 27. dxc5 {[%emt 0:00:06]} Bxb2 {[%emt 0:00:08]} 28. cxb6 {[%emt 0:00:06]} c3 {[%emt 0:01:52]} 29. Rd1 {[%emt 0:03:35]} Rxd1+ {[%emt 0:03:37]} 30. Qxd1 {[%emt 0:00:02]} Qa5 {[%emt 0:01:07]} 31. bxa7 {[%emt 0:01:01]} Qxa7 {[%emt 0:00:52]} 32. Qd8+ {[%emt 0:01:33]} Kf7 {[%emt 0:00:15]} 33. Qd5+ {[%emt 0:00:29]} Kf8 {[%emt 0:00:35]} 34. Qd8+ {[%emt 0:00:53]} Kf7 {[%emt 0:00:16]} 35. Qd5+ {[%emt 0:00:18]} Kf8 {[%emt 0:00:40]} 1/2-1/2

[Event "FIDE WCCC G12 2018"]
[Site "Santiago de Compostela"]
[Date "2018.11.09"]
[Round "5"]
[White "Hernandez Tellez, Claudia"]
[Black "Menon, Gauri"]
[Result "0-1"]
[ECO "C54"]
[WhiteElo "1721"]
[BlackElo "1592"]
[Annotator "NA RC"]
[PlyCount "54"]
[EventDate "2018.11.04"]
[EventType "swiss"]
[EventCountry "ESP"]
[SourceTitle "playchess.com"]
[Source "ChessBase"]
[SourceQuality "1"]
[TimeControl "40/5400+30:1800+30"]

1. e4 {[%emt 0:00:00]} e5 {[%emt 0:00:00]} 2. Nf3 {[%emt 0:00:00]} Nc6 {[%emt 0:00:00]} 3. Bc4 {[%emt 0:00:28]} Bc5 {[%emt 0:00:07]} 4. c3 {[%emt 0:00:52]} Nf6 {[%emt 0:00:36]} 5. d3 {[%emt 0:00:38]} a6 {[%emt 0:00:24]} 6. O-O {[%emt 0:01:22]} Ba7 {[%emt 0:00:19]} 7. Nbd2 {[%emt 0:00:36]} d6 {[%emt 0:00:27]} 8. Bb3 {[%emt 0:00:28]} O-O {[%emt 0:00:17]} 9. Re1 {[%emt 0:01:39]} Ng4 {[%emt 0:00:40]} 10. Re2 {[%emt 0:00:58]} Kh8 {[%emt 0:01:06]} 11. h3 {[%emt 0:01:57]} Nh6 {[%emt 0:03:31]} 12. Nf1 {[%emt 0:17:47]} f5 {[%emt 0:01:27]} 13. N1h2 {[%emt 0:11:09]} f4 {[%emt 0:06:32]} 14. d4 {[%emt 0:03:24]} Qf6 {[%emt 0:04:47]} 15. Bd5 {[%emt 0:10:01]} g5 {[%emt 0:10:44]} 16. Kf1 {[%emt 0:10:07]} g4 {[%emt 0:02:57]} 17. dxe5 {[%emt 0:01:06]} dxe5 {[%emt 0:01:14]} 18. hxg4 {[%emt 0:00:54]} Nxg4 {[%emt 0:00:29]} 19. Nxg4 {[%emt 0:01:20]} Bxg4 {[%emt 0:00:17]} 20. Re1 {[%emt 0:01:14]} Qh6 {[%emt 0:10:04]} 21. Ke2 {[%emt 0:02:08]} Qh2 {[%emt 0:05:29]} 22. Rf1 {[%emt 0:05:39]} Qxg2 {[%emt 0:02:35]} 23. Qd3 {[%emt 0:00:16]} Ne7 {[%emt 0:06:08]} 24. b4 {[%emt 0:00:42]} Nxd5 {[%emt 0:01:21]} 25. exd5 {[%emt 0:00:08]} e4 {[%emt 0:00:44]} 26. Qc2 {[%emt 0:00:43]} exf3+ {[%emt 0:01:05]} 27. Kd2 {[%emt 0:00:29]} Qxf1 0-1

[Event "FIDE WCCC G12 2018"]
[Site "Santiago de Compostela"]
[Date "2018.11.09"]
[Round "5"]
[White "Wang, Ellen"]
[Black "Savitha Shri B"]
[Result "0-1"]
[ECO "A43"]
[WhiteElo "1711"]
[BlackElo "1745"]
[Annotator "NA RC"]
[PlyCount "88"]
[EventDate "2018.11.04"]
[EventType "swiss"]
[EventCountry "ESP"]
[SourceTitle "playchess.com"]
[Source "ChessBase"]
[SourceQuality "1"]
[TimeControl "40/5400+30:1800+30"]

1. d4 {[%emt 0:00:00]} c5 {[%emt 0:00:00]} 2. d5 {[%emt 0:00:00]} Nf6 {[%emt 0:00:00]} 3. Bf4 {[%emt 0:00:00]} g6 {[%emt 0:00:00]} 4. Nc3 {[%emt 0:00:06]} d6 {[%emt 0:00:18]} 5. e4 {[%emt 0:00:21]} Bg7 {[%emt 0:00:06]} 6. Qd2 {[%emt 0:00:07]} Bd7 {[%emt 0:01:20]} 7. Bh6 {[%emt 0:00:59]} O-O {[%emt 0:02:32]} 8. h4 {[%emt 0:01:30]} b5 {[%emt 0:01:31]} 9. Bxg7 {[%emt 0:02:35]} Kxg7 {[%emt 0:00:10]} 10. h5 {[%emt 0:01:18]} b4 {[%emt 0:03:14]} 11. Nd1 {[%emt 0:01:52]} Nxe4 {[%emt 0:12:14]} 12. Qe3 {[%emt 0:00:56]} Nf6 {[%emt 0:00:06]} 13. hxg6 {[%emt 0:00:09]} fxg6 {[%emt 0:00:07]} 14. Qh6+ {[%emt 0:00:10]} Kg8 {[%emt 0:00:56]} 15. Nf3 {[%emt 0:00:40]} Rf7 {[%emt 0:09:39]} 16. Ng5 {[%emt 0:07:27]} Rg7 {[%emt 0:01:09]} 17. Ne3 {[%emt 0:01:44]} Qf8 {[%emt 0:09:39]} 18. Bd3 {[%emt 0:03:54]} Bc8 {[%emt 0:09:45]} 19. O-O-O {[%emt 0:06:33]} a5 {[%emt 0:13:17]} 20. Rh4 {[%emt 0:03:12]} e6 {[%emt 0:04:55]} 21. Rdh1 {[%emt 0:08:55]} Raa7 {[%emt 0:03:41]} 22. Rf4 {[%emt 0:12:59]} e5 {[%emt 0:04:30]} 23. Rf3 {[%emt 0:05:24]} Qe7 {[%emt 0:02:24]} 24. Ne4 {[%emt 0:04:05]} Nbd7 {[%emt 0:01:20]} 25. Qh3 {[%emt 0:01:51]} Nxe4 {[%emt 0:03:40]} 26. Bxe4 {[%emt 0:00:38]} Nb6 {[%emt 0:00:26]} 27. Qg3 {[%emt 0:03:34]} c4 {[%emt 0:00:52]} 28. Ng4 {[%emt 0:01:59]} Qg5+ {[%emt 0:00:31]} 29. Ne3 {[%emt 0:00:20]} Qxg3 {[%emt 0:00:02]} 30. Rxg3 {[%emt 0:00:52]} Raf7 {[%emt 0:00:12]} 31. f3 {[%emt 0:00:50]} Bf5 {[%emt 0:01:23]} 32. Bxf5 {[%emt 0:03:27]} gxf5 {[%emt 0:00:28]} 33. Rxg7+ {[%emt 0:00:18]} Kxg7 {[%emt 0:00:05]} 34. g4 {[%emt 0:00:20]} fxg4 {[%emt 0:02:26]} 35. fxg4 {[%emt 0:00:14]} Rf4 {[%emt 0:06:48]} 36. Nf5+ {[%emt 0:03:01]} Kg6 {[%emt 0:02:50]} 37. Rh6+ {[%emt 0:03:05]} Kg5 {[%emt 0:00:09]} 38. Rxd6 {[%emt 0:01:18]} c3 {[%emt 0:00:13]} 39. Ng3 {[%emt 0:05:29]} Nc4 {[%emt 0:02:44]} 40. Rc6 {[%emt 0:00:00]} cxb2+ {[%emt 0:00:00]} 41. Kb1 {[%emt 0:02:04]} Rd4 {[%emt 0:01:11]} 42. Rxc4 {[%emt 0:01:58]} Rxc4 {[%emt 0:00:11]} 43. Nf5 {[%emt 0:00:08]} Rxg4 {[%emt 0:00:54]} 44. Ne3 {[%emt 0:00:31]} Rd4 0-1

[Event "FIDE WCCC G12 2018"]
[Site "Santiago de Compostela"]
[Date "2018.11.09"]
[Round "5"]
[White "Rueda Nessi, Juana"]
[Black "Zhou, Lepu Coco"]
[Result "1-0"]
[ECO "C55"]
[WhiteElo "1642"]
[BlackElo "1617"]
[Annotator "NA RC"]
[PlyCount "199"]
[EventDate "2018.11.04"]
[EventType "swiss"]
[EventCountry "ESP"]
[SourceTitle "playchess.com"]
[Source "ChessBase"]
[SourceQuality "1"]
[TimeControl "40/5400+30:1800+30"]

1. e4 {[%emt 0:00:00]} e5 {[%emt 0:00:00]} 2. Nf3 {[%emt 0:00:00]} Nc6 {[%emt 0:00:00]} 3. Bc4 {[%emt 0:00:00]} Nf6 {[%emt 0:00:00]} 4. d3 {[%emt 0:00:05]} Be7 {[%emt 0:00:00]} 5. Bb3 {[%emt 0:00:15]} O-O {[%emt 0:00:25]} 6. O-O {[%emt 0:00:18]} d6 {[%emt 0:00:30]} 7. c3 {[%emt 0:00:23]} Na5 {[%emt 0:00:29]} 8. Bc2 {[%emt 0:00:07]} c5 {[%emt 0:00:24]} 9. Re1 {[%emt 0:00:23]} Bg4 {[%emt 0:00:19]} 10. h3 {[%emt 0:02:36]} Bh5 {[%emt 0:00:18]} 11. Nbd2 {[%emt 0:00:34]} b5 {[%emt 0:00:43]} 12. Nf1 {[%emt 0:03:17]} c4 {[%emt 0:04:50]} 13. Ng3 {[%emt 0:26:34]} Bg6 {[%emt 0:00:13]} 14. d4 {[%emt 0:00:55]} Nd7 {[%emt 0:01:17]} 15. dxe5 {[%emt 0:05:28]} Nxe5 {[%emt 0:01:16]} 16. Nd4 {[%emt 0:00:39]} a6 {[%emt 0:01:51]} 17. Ndf5 {[%emt 0:02:07]} Bxf5 {[%emt 0:03:48]} 18. Nxf5 {[%emt 0:00:36]} Nb7 {[%emt 0:01:42]} 19. Qd5 {[%emt 0:03:19]} Nc5 {[%emt 0:00:31]} 20. Rd1 {[%emt 0:21:31]} Ncd3 {[%emt 0:06:46]} 21. f4 {[%emt 0:01:35]} Nxc1 {[%emt 0:00:54]} 22. Raxc1 {[%emt 0:05:51]} Ng6 {[%emt 0:00:28]} 23. Nxe7+ {[%emt 0:03:09]} Qxe7 {[%emt 0:01:47]} 24. f5 {[%emt 0:04:49]} Nf4 {[%emt 0:00:39]} 25. Qd2 {[%emt 0:00:38]} Qe5 {[%emt 0:01:49]} 26. Rf1 {[%emt 0:00:45]} Nh5 {[%emt 0:01:06]} 27. Rcd1 {[%emt 0:01:22]} Rad8 {[%emt 0:02:17]} 28. Qg5 {[%emt 0:01:17]} Nf6 {[%emt 0:01:47]} 29. Rfe1 {[%emt 0:00:55]} Qc5+ {[%emt 0:01:52]} 30. Qe3 {[%emt 0:01:00]} Qxe3+ {[%emt 0:00:43]} 31. Rxe3 {[%emt 0:00:01]} Rfe8 {[%emt 0:03:31]} 32. Rd4 {[%emt 0:03:07]} g6 {[%emt 0:02:05]} 33. g4 {[%emt 0:03:24]} g5 {[%emt 0:05:30]} 34. Kf2 {[%emt 0:02:09]} h5 {[%emt 0:01:35]} 35. Kf3 {[%emt 0:02:18]} h4 {[%emt 0:00:36]} 36. Re1 {[%emt 0:00:57]} Nd7 {[%emt 0:02:29]} 37. Red1 {[%emt 0:01:05]} Ne5+ {[%emt 0:01:05]} 38. Ke3 {[%emt 0:00:14]} Re7 {[%emt 0:04:46]} 39. Rxd6 {[%emt 0:00:54]} Red7 {[%emt 0:00:14]} 40. Rxd7 {[%emt 0:00:00]} Rxd7 {[%emt 0:00:00]} 41. Rxd7 {[%emt 0:03:04]} Nxd7 {[%emt 0:00:15]} 42. Kd4 {[%emt 0:00:21]} f6 {[%emt 0:00:09]} 43. b3 {[%emt 0:05:27]} cxb3 {[%emt 0:04:21]} 44. axb3 {[%emt 0:02:42]} Ne5 {[%emt 0:02:26]} 45. Bd1 {[%emt 0:00:31]} a5 {[%emt 0:03:14]} 46. c4 {[%emt 0:03:29]} bxc4 {[%emt 0:01:02]} 47. bxc4 {[%emt 0:00:08]} Kf7 {[%emt 0:00:21]} 48. Be2 {[%emt 0:02:47]} Ke7 {[%emt 0:00:47]} 49. Kc5 {[%emt 0:01:31]} Kd7 {[%emt 0:03:50]} 50. Kb5 {[%emt 0:02:17]} Nc6 {[%emt 0:00:21]} 51. Bd1 {[%emt 0:01:58]} Kc7 {[%emt 0:03:15]} 52. c5 {[%emt 0:01:38]} Ne5 {[%emt 0:02:36]} 53. Be2 {[%emt 0:01:22]} Nc6 {[%emt 0:00:36]} 54. Bf1 {[%emt 0:01:31]} Kb7 {[%emt 0:03:18]} 55. Bg2 {[%emt 0:00:48]} Kc7 {[%emt 0:01:43]} 56. e5 {[%emt 0:06:36]} Nxe5 {[%emt 0:01:58]} 57. Kxa5 {[%emt 0:00:31]} Nd3 {[%emt 0:00:46]} 58. Kb5 {[%emt 0:00:33]} Nf4 {[%emt 0:00:29]} 59. Bf1 {[%emt 0:00:11]} Nd5 {[%emt 0:01:21]} 60. c6 {[%emt 0:02:29]} Ne3 {[%emt 0:04:16]} 61. Bd3 {[%emt 0:01:22]} Kd6 {[%emt 0:01:51]} 62. Kb6 {[%emt 0:01:44]} Nd5+ {[%emt 0:00:07]} 63. Kb7 {[%emt 0:00:33]} Nc7 {[%emt 0:00:09]} 64. Be4 {[%emt 0:00:34]} Ne8 {[%emt 0:01:12]} 65. Kc8 {[%emt 0:00:56]} Ke7 {[%emt 0:03:20]} 66. c7 {[%emt 0:01:48]} Kd6 {[%emt 0:00:07]} 67. Kd8 {[%emt 0:01:03]} Nxc7 {[%emt 0:00:10]} 68. Bg2 {[%emt 0:00:15]} Nb5 {[%emt 0:00:52]} 69. Ke8 {[%emt 0:00:18]} Ke5 {[%emt 0:00:07]} 70. Ke7 {[%emt 0:00:25]} Nd4 {[%emt 0:01:16]} 71. Bf1 {[%emt 0:01:07]} Nxf5+ {[%emt 0:04:37]} 72. gxf5 {[%emt 0:00:38]} Kxf5 {[%emt 0:00:07]} 73. Be2 {[%emt 0:00:32]} Ke5 {[%emt 0:00:07]} 74. Kf7 {[%emt 0:00:32]} f5 {[%emt 0:01:07]} 75. Kg6 {[%emt 0:00:29]} Kf4 {[%emt 0:00:38]} 76. Kh5 {[%emt 0:00:23]} g4 {[%emt 0:02:41]} 77. Kxh4 {[%emt 0:00:20]} g3 {[%emt 0:02:19]} 78. Bf1 {[%emt 0:00:18]} Kf3 {[%emt 0:00:07]} 79. Kg5 {[%emt 0:00:55]} Kf2 {[%emt 0:00:11]} 80. Kf4 {[%emt 0:00:22]} Kxf1 {[%emt 0:08:52]} 81. Kxg3 {[%emt 0:00:09]} Ke2 {[%emt 0:00:06]} 82. Kf4 {[%emt 0:00:14]} Kd3 {[%emt 0:00:18]} 83. h4 {[%emt 0:00:29]} Kd4 {[%emt 0:00:43]} 84. h5 {[%emt 0:00:03]} Kc5 {[%emt 0:00:32]} 85. h6 {[%emt 0:00:06]} Kd4 {[%emt 0:00:17]} 86. h7 {[%emt 0:01:21]} Kd5 {[%emt 0:00:13]} 87. h8=Q {[%emt 0:00:10]} Kc4 {[%emt 0:00:05]} 88. Qd8 {[%emt 0:00:08]} Kc5 {[%emt 0:00:08]} 89. Ke5 {[%emt 0:00:08]} Kc4 {[%emt 0:00:13]} 90. Qd4+ {[%emt 0:00:07]} Kb5 {[%emt 0:00:11]} 91. Qc3 {[%emt 0:00:05]} f4 {[%emt 0:00:44]} 92. Kxf4 {[%emt 0:00:10]} Ka4 {[%emt 0:00:19]} 93. Qb2 {[%emt 0:00:07]} Ka5 {[%emt 0:00:09]} 94. Qb3 {[%emt 0:00:06]} Ka6 {[%emt 0:00:04]} 95. Qb4 {[%emt 0:00:04]} Ka7 {[%emt 0:00:04]} 96. Qb5 {[%emt 0:00:03]} Ka8 {[%emt 0:00:08]} 97. Ke5 {[%emt 0:00:04]} Ka7 {[%emt 0:00:04]} 98. Kd6 {[%emt 0:00:03]} Ka8 {[%emt 0:00:07]} 99. Kc7 {[%emt 0:00:08]} Ka7 {[%emt 0:00:10]} 100. Qa5# {[%emt 0:00:03]} 1-0

[Event "FIDE WCCC G12 2018"]
[Site "Santiago de Compostela"]
[Date "2018.11.09"]
[Round "5"]
[White "Zavivaeva, Emilia"]
[Black "Tsirekidze, Barbare"]
[Result "1-0"]
[ECO "B06"]
[WhiteElo "1633"]
[BlackElo "1611"]
[Annotator "NA RC"]
[PlyCount "81"]
[EventDate "2018.11.04"]
[EventType "swiss"]
[EventCountry "ESP"]
[SourceTitle "playchess.com"]
[Source "ChessBase"]
[SourceQuality "1"]
[TimeControl "40/5400+30:1800+30"]

1. e4 {[%emt 0:00:30]} g6 {[%emt 0:00:00]} 2. d4 {[%emt 0:00:44]} Bg7 {[%emt 0:00:00]} 3. Nc3 {[%emt 0:01:09]} e6 {[%emt 0:00:00]} 4. Nf3 {[%emt 0:01:01]} Ne7 {[%emt 0:01:26]} 5. Bf4 {[%emt 0:00:46]} d6 {[%emt 0:03:16]} 6. Qd2 {[%emt 0:01:36]} Nd7 {[%emt 0:01:24]} 7. Bd3 {[%emt 0:00:37]} e5 {[%emt 0:03:48]} 8. Bh6 {[%emt 0:10:07]} O-O {[%emt 0:01:12]} 9. d5 {[%emt 0:11:19]} Nc5 10. h4 {[%emt 0:06:46]} f5 {[%emt 0:13:43]} 11. h5 {[%emt 0:11:30]} Nxd3+ {[%emt 0:05:39]} 12. cxd3 {[%emt 0:03:51]} f4 {[%emt 0:00:42]} 13. Bxg7 {[%emt 0:01:02]} Kxg7 {[%emt 0:00:10]} 14. d4 {[%emt 0:01:32]} Bg4 {[%emt 0:13:07]} 15. dxe5 {[%emt 0:15:59]} Bxf3 {[%emt 0:00:31]} 16. h6+ {[%emt 0:03:19]} Kg8 {[%emt 0:01:19]} 17. e6 {[%emt 0:03:55]} Bxe4 {[%emt 0:31:22]} 18. Nxe4 {[%emt 0:01:39]} Rf5 {[%emt 0:06:59]} 19. Qc3 {[%emt 0:05:43]} Re5 {[%emt 0:01:52]} 20. O-O-O {[%emt 0:01:40]} Qf8 {[%emt 0:00:23]} 21. f3 {[%emt 0:02:18]} Rc8 {[%emt 0:04:12]} 22. Kb1 {[%emt 0:07:40]} Qf5 {[%emt 0:07:09]} 23. Ka1 {[%emt 0:00:22]} Qf8 {[%emt 0:00:11]} 24. a3 {[%emt 0:00:29]} Nf5 {[%emt 0:00:57]} 25. Ka2 {[%emt 0:06:23]} Ne3 {[%emt 0:01:12]} 26. Rd2 {[%emt 0:00:30]} Qe7 {[%emt 0:01:10]} 27. Re1 {[%emt 0:00:32]} Rf8 {[%emt 0:00:33]} 28. Rxe3 {[%emt 0:00:28]} fxe3 {[%emt 0:00:06]} 29. Qxe3 {[%emt 0:00:03]} a6 {[%emt 0:00:37]} 30. g4 c6 {[%emt 0:00:50]} 31. f4 {[%emt 0:01:28]} Rxd5 {[%emt 0:00:23]} 32. Rxd5 {[%emt 0:00:16]} cxd5 {[%emt 0:00:04]} 33. Ng5 {[%emt 0:00:38]} Rf6 {[%emt 0:00:59]} 34. Qd4 {[%emt 0:00:19]} b5 {[%emt 0:00:46]} 35. Qxd5 {[%emt 0:00:08]} Rxf4 {[%emt 0:00:23]} 36. Ne4 {[%emt 0:00:57]} Rf8 {[%emt 0:00:46]} 37. g5 {[%emt 0:00:40]} Rf5 {[%emt 0:00:35]} 38. Nf6+ {[%emt 0:00:12]} Rxf6 {[%emt 0:00:24]} 39. gxf6 {[%emt 0:00:09]} Qxf6 {[%emt 0:00:03]} 40. e7+ {[%emt 0:00:00]} Qf7 {[%emt 0:00:00]} 41. e8=Q# {[%emt 0:00:15]} 1-0

[Event "FIDE WCCC G12 2018"]
[Site "Santiago de Compostela"]
[Date "2018.11.09"]
[Round "5"]
[White "Alimova, Dana"]
[Black "Kaldarova, Ayaulym"]
[Result "1-0"]
[ECO "C11"]
[WhiteElo "1628"]
[BlackElo "1526"]
[Annotator "NA RC"]
[PlyCount "67"]
[EventDate "2018.11.04"]
[EventType "swiss"]
[EventCountry "ESP"]
[SourceTitle "playchess.com"]
[Source "ChessBase"]
[SourceQuality "1"]
[TimeControl "40/5400+30:1800+30"]

1. e4 {[%emt 0:00:00]} e6 {[%emt 0:00:00]} 2. d4 {[%emt 0:00:00]} d5 {[%emt 0:00:00]} 3. Nc3 {[%emt 0:00:00]} Nf6 {[%emt 0:00:17]} 4. e5 {[%emt 0:00:00]} Nfd7 {[%emt 0:00:05]} 5. f4 {[%emt 0:00:00]} c5 {[%emt 0:00:24]} 6. Nf3 {[%emt 0:00:01]} Nc6 {[%emt 0:00:28]} 7. Be3 {[%emt 0:00:06]} a6 {[%emt 0:01:21]} 8. Qd2 {[%emt 0:00:12]} b5 {[%emt 0:01:24]} 9. a3 {[%emt 0:00:17]} Bb7 {[%emt 0:01:37]} 10. Ne2 {[%emt 0:10:36]} Rc8 {[%emt 0:04:30]} 11. Ng3 {[%emt 0:05:42]} Qc7 {[%emt 0:06:50]} 12. c3 {[%emt 0:15:39]} Na5 {[%emt 0:05:02]} 13. Qc2 {[%emt 0:08:19]} cxd4 {[%emt 0:08:07]} 14. Nxd4 {[%emt 0:02:53]} Nc4 {[%emt 0:01:45]} 15. Bxc4 {[%emt 0:21:04]} dxc4 {[%emt 0:05:40]} 16. O-O {[%emt 0:02:45]} Be7 {[%emt 0:03:26]} 17. f5 {[%emt 0:09:44]} Qxe5 {[%emt 0:10:36]} 18. Bf4 {[%emt 0:02:09]} Qd5 {[%emt 0:07:31]} 19. fxe6 {[%emt 0:02:07]} fxe6 {[%emt 0:01:47]} 20. Rad1 {[%emt 0:05:48]} Bc5 {[%emt 0:02:12]} 21. Kh1 {[%emt 0:02:09]} Bxd4 {[%emt 0:13:37]} 22. Rxd4 {[%emt 0:00:23]} Qc6 {[%emt 0:01:12]} 23. Rd6 {[%emt 0:00:43]} Qc5 {[%emt 0:05:08]} 24. Rxe6+ {[%emt 0:01:20]} Kd8 {[%emt 0:01:43]} 25. Nf5 {[%emt 0:09:43]} Rc6 {[%emt 0:04:28]} 26. Nd6 {[%emt 0:00:39]} Rxd6 {[%emt 0:03:26]} 27. Bxd6 {[%emt 0:00:36]} Qd5 {[%emt 0:01:10]} 28. Rfe1 {[%emt 0:00:15]} Nc5 {[%emt 0:02:56]} 29. Bxc5 {[%emt 0:00:34]} Qxc5 {[%emt 0:00:08]} 30. Qd2+ {[%emt 0:00:32]} Kc7 {[%emt 0:02:03]} 31. Qf4+ {[%emt 0:00:13]} Kd8 {[%emt 0:03:38]} 32. Qf7 {[%emt 0:00:55]} Bxg2+ {[%emt 0:02:34]} 33. Kxg2 {[%emt 0:00:06]} Qg5+ {[%emt 0:00:09]} 34. Kf1 {[%emt 0:00:41]} 1-0